fUSD/lending_fUSD_20250519
["ID","MTS","AMOUNT","RATE_DAILY","PERIOD"]
[361650517,1747665647952,-162.76,0.00011962,2]
[361650518,1747665647977,-162.76,0.00011962,2]
[361650519,1747665648001,-162.76,0.00011962,2]
[361650520,1747665648025,-162.76,0.00011962,2]
[361650521,1747665648049,-162.76,0.00011962,2]
[361650522,1747665648073,-162.76,0.00011962,2]
[361650523,1747665648096,-1000.0,0.00011968,2]
[361650524,1747665648119,-500.0,0.00011973,2]
[361650525,1747665648141,-500.0,0.00011973,2]
[361650526,1747665648163,-500.0,0.00011973,2]
[361650527,1747665648185,-500.0,0.00011973,2]
[361650528,1747665648208,-500.0,0.00011973,2]
[361650529,1747665648232,-500.0,0.00011973,2]
[361650530,1747665648257,-368.30202362,0.00011973,2]
[361650531,1747665648279,-500.0,0.00011973,2]
[361650532,1747665648303,-500.0,0.00011973,2]
[361650533,1747665648325,-500.26014629,0.00011973,2]
[361650534,1747665648347,-500.0,0.00011973,2]
[361650535,1747665648369,-500.0,0.00011973,2]
[361650536,1747665648392,-500.82167112,0.00011973,2]
[361650537,1747665648414,-500.0,0.00011973,2]
[361650538,1747665648437,-500.0,0.00011973,2]
[361650539,1747665648461,-500.0,0.00011973,2]
[361650540,1747665648486,-150.0,0.00011974,2]
[361650541,1747665648509,-171.30495117,0.0001199,2]
[361650542,1747665648532,-171.30495117,0.0001199,2]
[361650543,1747665648554,-1000.0,0.00011991,2]
[361650544,1747665648581,-5299.2266432,0.00011991,2]
[361650545,1747665648606,-2127.1228726,0.00011991,2]
[361650546,1747665648630,-50864.97179879,0.00011991,2]
[361650547,1747665651641,-11708.68215761,0.00011991,2]
[361650548,1747665651667,-156.93518189,0.00011991,2]
[361650549,1747665651690,-217.12752195,0.00011991,2]
[361650550,1747665651716,-208.62581999,0.00011991,2]
[361650551,1747665651738,-6686.6350218,0.00011992,2]
[361650552,1747665651761,-8074.0434004,0.00011992,2]
[361650553,1747665651784,-2684.0320774,0.00011992,2]
[361650554,1747665651808,-3240.9412822,0.00011992,2]
[361650555,1747665651833,-78956.2730862,0.00011992,2]
[361650556,1747665651856,-95338.892216,0.00011992,2]
[361650557,1747665651879,-711.0,0.00011999,2]
[361650558,1747665651913,-231.76326273,0.00012,2]
[361650559,1747665651942,-16785.04897183,0.00012,2]
[361650560,1747665652302,-225000.0,0.00012,2]
[361650561,1747665659616,-561.61,0.00011397,2]
[361650562,1747665659642,-224438.39,0.00012,2]
[361650563,1747665660439,-225000.0,0.00012,2]
[361650566,1747665773987,150.0,0.00011123,2]
[361650567,1747665803137,505.323274,0.000247,120]
[361650569,1747665810746,641.44,0.000199,31]
[361650570,1747665811209,641.44,0.000199,31]
[361650571,1747665811269,641.44,0.000199,31]
[361650572,1747665811326,641.44,0.000199,31]
[361650573,1747665811378,641.44,0.000199,31]
[361650574,1747665811449,641.44,0.000199,31]
[361650575,1747665811530,641.44,0.000199,31]
[361650576,1747665811606,641.44,0.000199,31]
[361650577,1747665811683,641.44,0.000199,31]
[361650578,1747665811739,641.44,0.000199,31]
[361650579,1747665811796,641.44,0.000199,31]
[361650580,1747665811857,641.44,0.000199,31]
[361650581,1747665811908,641.44,0.000199,31]
[361650582,1747665811965,641.44,0.000199,31]
[361650583,1747665812042,641.44,0.000199,31]
[361650584,1747665812095,641.44,0.000199,31]
[361650585,1747665837582,-866.07728985,0.00011434,2]
[361650586,1747665837609,-250.0,0.00011461,2]
[361650587,1747665837634,-200.0,0.00011667,2]
[361650588,1747665837660,-200.0,0.00011841,2]
[361650589,1747665837685,-179.66348195,0.00011873,2]
[361650590,1747665837717,-500.0,0.00011898,2]
[361650591,1747665837750,-500.0,0.00011898,2]
[361650592,1747665837779,-500.0,0.00011898,2]
[361650593,1747665837810,-500.0,0.00011898,2]
[361650594,1747665837838,-500.0,0.00011898,2]
[361650595,1747665837864,-179.66348195,0.000119,2]
[361650596,1747665837888,-207.50486338,0.000119,2]
[361650597,1747665837912,-170.435642,0.000119,2]
[361650598,1747665837936,-500.0,0.00011973,2]
[361650599,1747665837959,-519.09968951,0.00011973,2]
[361650600,1747665837983,-500.0,0.00011973,2]
[361650601,1747665838006,-500.0,0.00011973,2]
[361650602,1747665838030,-500.0,0.00011973,2]
[361650603,1747665838053,-500.0,0.00011973,2]
[361650604,1747665838076,-500.0,0.00011973,2]
[361650605,1747665838099,-500.0,0.00011973,2]
[361650606,1747665838123,-505.00798943,0.00011973,2]
[361650607,1747665838146,-500.0,0.00011973,2]
[361650608,1747665838169,-500.0,0.00011973,2]
[361650609,1747665838192,-500.0,0.00011973,2]
[361650610,1747665838216,-5046.8897453,0.00011991,2]
[361650611,1747665838240,-59594.0414973,0.00011991,2]
[361650612,1747665838264,-5197.9058787,0.00011992,2]
[361650613,1747665838287,-5348.9220121,0.00011992,2]
[361650614,1747665838310,-61377.2509935,0.00011992,2]
[361650615,1747665838334,-52657.53743503,0.00011992,2]
[361650616,1747665886761,165.07,0.00011127,2]
[361650617,1747665897099,993.0,0.00011102,2]
[361650618,1747665945101,-200.0,0.00011448,2]
[361650619,1747665945126,-167.51,0.0001147,2]
[361650620,1747665945149,-150.14,0.00011506,2]
[361650621,1747665945174,-200.0,0.00011655,2]
[361650622,1747665945199,-1200.0,0.00011898,2]
[361650623,1747665945223,-150.0,0.00011898,2]
[361650624,1747665945247,-300.0,0.00011898,2]
[361650625,1747665945271,-500.0,0.00011899,2]
[361650626,1747665945303,-500.0,0.00011899,2]
[361650627,1747665945867,-500.0,0.00011899,2]
[361650628,1747665945925,-500.0,0.00011899,2]
[361650629,1747665945953,-500.0,0.00011899,2]
[361650630,1747665945983,-500.0,0.00011899,2]
[361650631,1747665946012,-500.0,0.00011899,2]
[361650632,1747665946040,-500.0,0.00011899,2]
[361650633,1747665946067,-500.0,0.00011899,2]
[361650634,1747665946095,-500.0,0.00011899,2]
[361650635,1747665946122,-500.0,0.00011899,2]
[361650636,1747665946149,-500.0,0.00011899,2]
[361650637,1747665946175,-500.0,0.00011899,2]
[361650638,1747665946204,-500.0,0.00011899,2]
[361650639,1747665946232,-500.0,0.00011899,2]
[361650640,1747665946260,-500.0,0.00011899,2]
[361650641,1747665946287,-500.0,0.00011899,2]
[361650642,1747665946327,-477.49369914,0.00011899,2]
[361650643,1747665946357,-500.0,0.00011899,2]
[361650644,1747665946386,-500.0,0.00011899,2]
[361650645,1747665946415,-500.0,0.00011899,2]
[361650646,1747665946450,-500.0,0.00011899,2]
[361650647,1747665946478,-500.0,0.00011899,2]
[361650648,1747665946508,-500.0,0.00011899,2]
[361650649,1747665946536,-500.0,0.00011899,2]
[361650650,1747665946564,-500.0,0.00011899,2]
[361650651,1747665946593,-500.0,0.00011899,2]
[361650652,1747665946620,-500.0,0.00011899,2]
[361650653,1747665946648,-500.0,0.00011899,2]
[361650654,1747665946679,-500.0,0.00011899,2]
[361650655,1747665946706,-500.0,0.00011899,2]
[361650656,1747665946734,-500.0,0.00011899,2]
[361650657,1747665946763,-500.0,0.00011899,2]
[361650658,1747665946791,-500.0,0.00011899,2]
[361650659,1747665946820,-500.0,0.00011899,2]
[361650660,1747665946849,-500.0,0.00011899,2]
[361650661,1747665946879,-500.0,0.00011899,2]
[361650662,1747665946909,-500.0,0.00011899,2]
[361650663,1747665946941,-500.0,0.00011899,2]
[361650664,1747665946975,-500.0,0.00011899,2]
[361650665,1747665947005,-500.0,0.00011899,2]
[361650666,1747665947035,-500.0,0.00011899,2]
[361650667,1747665947064,-347.74936992,0.00011899,2]
[361650668,1747665947094,-500.0,0.00011899,2]
[361650669,1747665947125,-499.99999999,0.00011899,2]
[361650670,1747665947149,-27820.20988016,0.000119,2]
[361650671,1747665947183,-32083.8964583,0.000119,2]
[361650672,1747665947208,-664.13770724,0.000119,2]
[361650673,1747665947231,-207.50486338,0.000119,2]
[361650674,1747665947254,-720.65,0.000119,2]
[361650675,1747665947277,-150.0,0.00011955,2]
[361650676,1747665947301,-500.0,0.00011973,2]
[361650677,1747665947324,-500.0,0.00011973,2]
[361650678,1747665947347,-500.0,0.00011973,2]
[361650679,1747665947370,-500.0,0.00011973,2]
[361650680,1747665947392,-500.0,0.00011973,2]
[361650681,1747665947414,-511.48059896,0.00011973,2]
[361650682,1747665947436,-500.0,0.00011973,2]
[361650683,1747665947463,-2015.3827854,0.00011991,2]
[361650684,1747665947493,-150.0,0.00011991,2]
[361650685,1747665947518,-10502.92305467,0.00011992,2]
[361650686,1747665947542,-2080.1816096,0.00011992,2]
[361650687,1747665947567,-2144.9804338,0.00011992,2]
[361650688,1747665947589,-151.98926536,0.00011999,2]
[361650689,1747665947614,-231.76326272,0.00012,2]
[361650690,1747665947644,-49584.00426058,0.00012,2]
[361650692,1747666036899,-164.63034405,0.0001137,2]
[361650693,1747666036920,-4000.0,0.0001152,2]
[361650694,1747666036943,-200.0,0.00011604,2]
[361650695,1747666036963,-250.0,0.00011685,2]
[361650696,1747666036985,-200.0,0.00011685,2]
[361650697,1747666037013,-500.0,0.00011879,2]
[361650698,1747666037042,-500.0,0.00011879,2]
[361650699,1747666037069,-500.0,0.00011879,2]
[361650700,1747666037097,-500.0,0.00011879,2]
[361650701,1747666037126,-334.774937,0.00011879,2]
[361650702,1747666037148,-135008.35196187,0.0001188,2]
[361650703,1747666037169,-608.17007285,0.000119,2]
[361650704,1747666037192,-442.7584715,0.000119,2]
[361650705,1747666037214,-500.0,0.00011973,2]
[361650706,1747666037238,-500.0,0.00011973,2]
[361650707,1747666037263,-500.0,0.00011973,2]
[361650708,1747666037290,-500.0,0.00011973,2]
[361650709,1747666037313,-500.0,0.00011973,2]
[361650710,1747666037337,-500.0,0.00011973,2]
[361650711,1747666037364,-121524.98243365,0.00012,2]
[361650712,1747666039117,-130725.24949974,0.00012,2]
[361650713,1747666040122,-26826.38156361,0.00012,2]
[361650714,1747666045109,-31333.21070198,0.00012,2]
[361650715,1747666046093,-7222.93648065,0.00012,2]
[361650716,1747666052109,-29659.99816035,0.00012,2]
[361650717,1747666052132,-366769.03533021,0.00012,2]
[361650718,1747666053121,-67044.73981348,0.00012,2]
[361650719,1747666054130,-42485.67345851,0.00012,2]
[361650720,1747666076139,-678673.33942815,0.00042897,30]
[361650721,1747666076164,-1000.0,0.00042897,30]
[361650722,1747666076187,-1000.0,0.00042897,30]
[361650723,1747666076212,-1000.0,0.00042897,30]
[361650724,1747666076236,-1000.0,0.00042897,30]
[361650725,1747666076261,-1000.0,0.00042897,30]
[361650726,1747666076285,-1000.0,0.00042897,30]
[361650727,1747666076312,-1000.0,0.00042897,30]
[361650728,1747666076336,-1000.0,0.00042897,30]
[361650729,1747666076360,-1000.0,0.00042897,30]
[361650730,1747666076385,-1000.0,0.00042897,30]
[361650731,1747666076410,-1000.0,0.00042897,30]
[361650732,1747666076435,-1000.0,0.00042897,30]
[361650733,1747666076460,-1000.0,0.00042897,30]
[361650734,1747666076485,-1000.0,0.00042897,30]
[361650735,1747666076510,-1000.0,0.00042897,30]
[361650736,1747666076535,-1845.81073647,0.00042897,30]
[361650737,1747666076563,-1000.0,0.00042897,30]
[361650738,1747666076588,-1000.0,0.00042897,30]
[361650739,1747666076616,-50000.0,0.00042897,30]
[361650740,1747666076639,-1000.0,0.00042897,30]
[361650741,1747666076661,-1000.0,0.00042897,30]
[361650742,1747666076685,-1000.0,0.00042897,30]
[361650743,1747666076711,-1000.0,0.00042897,30]
[361650744,1747666076736,-1000.0,0.00042897,30]
[361650745,1747666076762,-1000.0,0.00042897,30]
[361650746,1747666076788,-1000.0,0.00042897,30]
[361650747,1747666076814,-1000.0,0.00042897,30]
[361650748,1747666076840,-809.72248372,0.00042897,30]
[361650749,1747666076866,-1000.0,0.00042897,30]
[361650750,1747666076893,-1000.0,0.00042897,30]
[361650751,1747666076920,-788.7125621,0.00042897,30]
[361650752,1747666076946,-1000.0,0.00042897,30]
[361650753,1747666076973,-1000.0,0.00042897,30]
[361650754,1747666076999,-1000.0,0.00042897,30]
[361650755,1747666077024,-1000.0,0.00042897,30]
[361650756,1747666077050,-288.13687031,0.00042897,30]
[361650757,1747666077075,-1000.0,0.00042897,30]
[361650758,1747666077100,-518.68721478,0.00042897,30]
[361650759,1747666077125,-387.65406135,0.00042897,30]
[361650760,1747666077151,-730.54745477,0.00042897,30]
[361650761,1747666077177,-889.24953051,0.00042897,30]
[361650762,1747666077203,-1000.0,0.00042897,30]
[361650763,1747666077229,-1054.71065563,0.00042897,30]
[361650764,1747666077255,-2034.9104768,0.00042897,30]
[361650765,1747666077280,-750.39639779,0.00042897,30]
[361650766,1747666077306,-500.0,0.00042897,30]
[361650767,1747666077331,-871.0284328,0.00042897,30]
[361650768,1747666077356,-879.35920461,0.00042897,30]
[361650769,1747666077381,-947.19360624,0.00042897,30]
[361650770,1747666077405,-212.00157631,0.00042897,30]
[361650771,1747666077431,-978.53560756,0.00042897,30]
[361650772,1747666077456,-1030.18106972,0.00042897,30]
[361650773,1747666077481,-357.65153442,0.00042897,30]
[361650774,1747666077506,-640.59099265,0.00042897,30]
[361650775,1747666077532,-213.89308943,0.00042897,30]
[361650776,1747666077574,-695.76097228,0.00042897,30]
[361650777,1747666077606,-1030.01974095,0.00042897,30]
[361650778,1747666077641,-751.59281528,0.00042897,30]
[361650779,1747666077675,-947.76717998,0.00042897,30]
[361650780,1747666077711,-813.15043537,0.00042897,30]
[361650781,1747666077740,-673.74210097,0.00042897,30]
[361650782,1747666077777,-900.0898467,0.00042897,30]
[361650783,1747666077811,-2063.61898811,0.00042897,30]
[361650784,1747666077844,-459.93870902,0.00042897,30]
[361650785,1747666077878,-410.07454865,0.00042897,30]
[361650786,1747666077911,-951.84868413,0.00042897,30]
[361650787,1747666077944,-634.2457235,0.00042897,30]
[361650788,1747666077979,-1651.02541692,0.00042897,30]
[361650789,1747666078014,-1790.39339633,0.00042897,30]
[361650790,1747666078045,-1489.41765238,0.00042897,30]
[361650791,1747666078076,-312.79701523,0.00042897,30]
[361650792,1747666078113,-266.73235646,0.00042897,30]
[361650793,1747666078140,-434.63729242,0.00042897,30]
[361650794,1747666078169,-944.31255802,0.00042897,30]
[361650795,1747666078204,-193.70692524,0.00042897,30]
[361650796,1747666078236,-351.19122393,0.00042897,30]
[361650797,1747666078266,-207.58677231,0.00042897,30]
[361650798,1747666078297,-20166.50972219,0.00042897,30]
[361650799,1747666078337,-14445.35382441,0.00042897,30]
[361650800,1747666078368,-761282.91334094,0.00042897,30]
[361650801,1747666078398,-58761.62745348,0.00042897,30]
[361650802,1747666078428,-53846.76965663,0.00042897,30]
[361650803,1747666078459,-110829.28238883,0.00042897,30]
[361650804,1747666078489,-7500.000001,0.00042897,30]
[361650805,1747666078519,-208.7,0.00042897,30]
[361650806,1747666078548,-32067.70380487,0.00042897,30]
[361650807,1747666078579,-516.26755456,0.00042897,30]
[361650808,1747666078609,-300.00451138,0.00042897,30]
[361650809,1747666078639,-8991.70356298,0.00042897,30]
[361650810,1747666078670,-1190.0,0.00042897,30]
[361650811,1747666078702,-193.09583953,0.00042897,60]
[361650812,1747666078733,-1676.41122408,0.00042897,120]
[361650813,1747666078763,-1000.0,0.00042897,30]
[361650814,1747666078794,-1137.0,0.00042897,31]
[361650815,1747666078826,-1137.0,0.00042897,31]
[361650816,1747666078856,-1140.0,0.00042897,31]
[361650817,1747666078886,-1137.0,0.00042897,31]
[361650818,1747666078916,-500.0,0.00042897,120]
[361650819,1747666078946,-500.0,0.00042897,120]
[361650820,1747666078976,-500.0,0.00042897,120]
[361650821,1747666079006,-264.87327041,0.00042897,120]
[361650822,1747666079041,-500.0,0.00042897,120]
[361650823,1747666079074,-500.0,0.00042897,120]
[361650824,1747666079107,-500.0,0.00042897,120]
[361650825,1747666079140,-500.0,0.00042897,120]
[361650826,1747666079176,-500.0,0.00042897,120]
[361650827,1747666079213,-500.0,0.00042897,120]
[361650828,1747666079251,-500.0,0.00042897,120]
[361650829,1747666079286,-500.0,0.00042897,120]
[361650830,1747666079322,-561.61225794,0.00042897,120]
[361650831,1747666079353,-2350.11,0.00042897,120]
[361650832,1747666079384,-2350.11,0.00042897,120]
[361650833,1747666079415,-2350.11,0.00042897,120]
[361650834,1747666079449,-2350.11,0.00042897,120]
[361650835,1747666079486,-2350.11,0.00042897,120]
[361650836,1747666079523,-2350.11,0.00042897,120]
[361650837,1747666079565,-2350.11,0.00042897,120]
[361650838,1747666079604,-2350.11,0.00042897,120]
[361650839,1747666079637,-2350.11,0.00042897,120]
[361650840,1747666079667,-2350.11,0.00042897,120]
[361650841,1747666079699,-2350.11,0.00042897,120]
[361650842,1747666079733,-2350.11,0.00042897,120]
[361650843,1747666079765,-2350.11,0.00042897,120]
[361650844,1747666079797,-2350.11,0.00042897,120]
[361650845,1747666079833,-2350.11,0.00042897,120]
[361650846,1747666079865,-2350.11,0.00042897,120]
[361650847,1747666079898,-2350.11,0.00042897,120]
[361650848,1747666079930,-2350.11,0.00042897,120]
[361650849,1747666079962,-2350.11,0.00042897,120]
[361650850,1747666079993,-2350.11,0.00042897,120]
[361650851,1747666080025,-2350.11,0.00042897,120]
[361650852,1747666080057,-2350.11,0.00042897,120]
[361650853,1747666080090,-2350.11,0.00042897,120]
[361650854,1747666080120,-2350.31366729,0.00042897,120]
[361650855,1747666080150,-893.79008737,0.00042897,60]
[361650856,1747666080178,-1609.04930034,0.00042897,90]
[361650857,1747666080206,-799.22342674,0.00042897,91]
[361650858,1747666080234,-715.25056595,0.00042897,120]
[361650859,1747666080264,-265.8883425,0.00042897,120]
[361650860,1747666080294,-476.07090972,0.00042897,120]
[361650861,1747666080327,-289.17663639,0.00042897,120]
[361650862,1747666080356,-858.89210747,0.00042897,120]
[361650863,1747666080386,-1405.50588768,0.00042897,90]
[361650864,1747666080416,-842.82402323,0.00042897,120]
[361650865,1747666080446,-1206.18023855,0.00042897,120]
[361650866,1747666080475,-988.81676657,0.00042897,120]
[361650867,1747666080503,-240.69088688,0.00042897,31]
[361650868,1747666080530,-897.82655779,0.00042897,120]
[361650869,1747666080557,-169.70519023,0.00042897,120]
[361650870,1747666080588,-301.39293655,0.00042897,120]
[361650871,1747666080616,-893.94746114,0.00042897,120]
[361650872,1747666080645,-1744.21818408,0.00042897,120]
[361650873,1747666080674,-911.71542779,0.00042897,120]
[361650874,1747666080706,-4354.63512362,0.00042897,120]
[361650875,1747666080734,-966.74208161,0.00042897,120]
[361650876,1747666080763,-281.94114696,0.00042897,120]
[361650877,1747666080793,-336.06931556,0.00042897,120]
[361650878,1747666081498,-168.12649568,0.00042897,120]
[361650879,1747666081572,-173684.05142821,0.00042897,30]
[361650880,1747666081596,-547.26744988,0.00042897,120]
[361650881,1747666081620,-485.99736002,0.00042897,120]
[361650882,1747666081645,-258.84186187,0.00042897,120]
[361650883,1747666081669,-182.42350812,0.00042897,120]
[361650884,1747666081693,-540.42131407,0.00042897,49]
[361650885,1747666081719,-177.04662534,0.00042897,120]
[361650886,1747666081743,-439.63526947,0.00042897,60]
[361650887,1747666081768,-2199.57013886,0.00042897,120]
[361650888,1747666081798,-50000.0,0.00042897,31]
[361650889,1747666081829,-50000.0,0.00042897,32]
[361650890,1747666081856,-50000.0,0.00042897,33]
[361650891,1747666081881,-3000.0,0.00042897,120]
[361650892,1747666081909,-50000.0,0.00042897,34]
[361650893,1747666081937,-50000.0,0.00042897,35]
[361650894,1747666081967,-50000.0,0.00042897,36]
[361650895,1747666081995,-50000.0,0.00042897,37]
[361650896,1747666082020,-221444.9775923,0.00042897,120]
[361650897,1747666082047,-417.9505395,0.00042897,30]
[361650898,1747666082073,-322.79043428,0.00042897,30]
[361650899,1747666082098,-5039.62542492,0.00042897,120]
[361650900,1747666082124,-1150.43108379,0.00042897,120]
[361650901,1747666082150,-547273.06,0.00042897,60]
[361650902,1747666082175,-483.0,0.00042897,120]
[361650903,1747666082203,-50000.0,0.00042897,38]
[361650904,1747666082231,-50000.0,0.00042897,39]
[361650905,1747666082256,-16558.861739,0.00042897,120]
[361650906,1747666082281,-150.86654872,0.00042897,120]
[361650907,1747666082306,-1000.0,0.00042897,60]
[361650908,1747666082333,-1000.0,0.00042897,60]
[361650909,1747666082360,-1000.0,0.00042897,120]
[361650910,1747666082387,-160.0,0.00042897,30]
[361650911,1747666082413,-325.06553888,0.00042897,120]
[361650912,1747666082439,-143315.30973567,0.00042897,30]
[361650913,1747666082465,-500.0,0.00042897,120]
[361650914,1747666082490,-500.0,0.00042897,120]
[361650915,1747666082516,-500.0,0.00042897,120]
[361650916,1747666082541,-500.0,0.00042897,120]
[361650917,1747666082569,-500.0,0.00042897,120]
[361650918,1747666082595,-265.53,0.00042897,120]
[361650919,1747666082622,-500.0,0.00042897,120]
[361650920,1747666082650,-500.0,0.00042897,120]
[361650921,1747666082676,-500.0,0.00042897,120]
[361650922,1747666082703,-500.0,0.00042897,120]
[361650923,1747666082735,-500.0,0.00042897,120]
[361650924,1747666082761,-500.0,0.00042897,120]
[361650925,1747666082787,-500.0,0.00042897,120]
[361650926,1747666082815,-500.0,0.00042897,120]
[361650927,1747666082842,-500.0,0.00042897,120]
[361650928,1747666082867,-500.0,0.00042897,120]
[361650929,1747666082893,-500.0,0.00042897,120]
[361650930,1747666082919,-500.0,0.00042897,120]
[361650931,1747666082946,-500.0,0.00042897,120]
[361650932,1747666082971,-500.0,0.00042897,120]
[361650933,1747666082997,-500.0,0.00042897,120]
[361650934,1747666083023,-500.0,0.00042897,120]
[361650935,1747666083051,-500.0,0.00042897,120]
[361650936,1747666083080,-500.0,0.00042897,120]
[361650937,1747666083108,-500.0,0.00042897,120]
[361650938,1747666083136,-500.0,0.00042897,120]
[361650939,1747666083165,-571.01,0.00042897,120]
[361650940,1747666083195,-500.0,0.00042897,120]
[361650941,1747666083223,-500.0,0.00042897,120]
[361650942,1747666083251,-500.0,0.00042897,120]
[361650943,1747666083278,-500.0,0.00042897,120]
[361650944,1747666083304,-643.84,0.00042897,120]
[361650945,1747666083331,-160.0,0.00042897,30]
[361650946,1747666083355,-160.0,0.00042897,30]
[361650947,1747666083380,-160.0,0.00042897,30]
[361650948,1747666083405,-160.0,0.00042897,30]
[361650949,1747666083430,-160.0,0.00042897,30]
[361650950,1747666083456,-12010.9489,0.00042897,120]
[361650951,1747666083481,-3175.9094111,0.00042897,120]
[361650952,1747666083508,-3435.10498722,0.00042897,120]
[361650953,1747666083533,-8719.28659076,0.00042897,120]
[361650954,1747666083561,-35341.0,0.00042897,120]
[361650955,1747666083587,-5066.0,0.00042897,30]
[361650956,1747666083613,-2214.8644246,0.00042897,44]
[361650957,1747666083639,-3332.81165411,0.00042897,120]
[361650958,1747666083663,-2594.75317884,0.00042897,120]
[361650959,1747666083688,-711.10922196,0.00042897,120]
[361650960,1747666083715,-2055.61574195,0.00042897,120]
[361650961,1747666083741,-2407.14515585,0.00042897,120]
[361650962,1747666083767,-224.9306946,0.00042897,120]
[361650963,1747666083794,-693.01093976,0.00042897,120]
[361650964,1747666083821,-685.49044738,0.00042897,120]
[361650965,1747666083849,-4005.79799028,0.00042897,120]
[361650966,1747666083878,-586.2508992,0.00042897,120]
[361650967,1747666083905,-771.96405876,0.00042897,120]
[361650968,1747666083932,-1442.50137405,0.00042897,120]
[361650969,1747666083959,-2000.0,0.00042897,31]
[361650970,1747666083984,-23798.40284229,0.00042897,30]
[361650971,1747666084011,-5000.0,0.00042897,120]
[361650972,1747666084038,-1093.26803797,0.00042897,30]
[361650973,1747666084065,-567.45114404,0.00042897,120]
[361650974,1747666084332,-2044.28426953,0.00042897,120]
[361650975,1747666084361,-5467.18956476,0.00042897,120]
[361650976,1747666084390,-4652.78743838,0.00042897,120]
[361650977,1747666084418,-756.0,0.00042897,120]
[361650978,1747666084446,-1131.46163976,0.00042897,120]
[361650979,1747666084474,-3158.82180725,0.00042897,120]
[361650980,1747666084502,-4876.34113282,0.00042897,120]
[361650981,1747666084530,-1026.58764084,0.00042897,120]
[361650982,1747666084556,-2067.95961426,0.00042897,30]
[361650983,1747666084586,-2611.0494553,0.00042897,120]
[361650984,1747666084613,-2763.47474935,0.00042897,120]
[361650985,1747666084641,-160.64113764,0.00042897,120]
[361650986,1747666084669,-1948.69,0.00042897,60]
[361650987,1747666084696,-496085.92074551,0.00042897,30]
[361650988,1747666084725,-1000.0,0.00042897,30]
[361650989,1747666084751,-6540.0,0.00042897,120]
[361650990,1747666084780,-500.0,0.00042897,120]
[361650991,1747666084809,-353.94343064,0.00042897,120]
[361650992,1747666084838,-914.62652581,0.00042897,30]
[361650993,1747666084865,-176.62518416,0.00042897,120]
[361650994,1747666084893,-150.9,0.00042897,30]
[361650995,1747666084918,-168.65550526,0.00042897,60]
[361650996,1747666084943,-21002.0,0.00042897,30]
[361650997,1747666084968,-169.20980657,0.00042897,30]
[361650998,1747666084995,-306.41776797,0.00042897,30]
[361650999,1747666085022,-241.22907431,0.00042897,30]
[361651000,1747666085048,-155.49496819,0.00042897,120]
[361651001,1747666085075,-1442.42059725,0.00042897,30]
[361651002,1747666085100,-1109.10541045,0.00042897,30]
[361651003,1747666085125,-179.22509615,0.00042897,120]
[361651004,1747666085152,-750.24262578,0.00042897,45]
[361651005,1747666085178,-1135.0,0.00042897,120]
[361651006,1747666085204,-364.52031063,0.00042897,30]
[361651007,1747666085229,-2745.0252799,0.00042897,120]
[361651008,1747666085254,-643.54504638,0.00042897,120]
[361651009,1747666085279,-3400.0,0.00042897,120]
[361651010,1747666085304,-654.14378354,0.00042897,120]
[361651011,1747666085329,-1097.54655299,0.00042897,120]
[361651012,1747666085354,-227.82946118,0.00042897,120]
[361651013,1747666085379,-7727.51,0.00042897,120]
[361651014,1747666085404,-160.0,0.00042897,30]
[361651015,1747666085430,-160.0,0.00042897,30]
[361651016,1747666085456,-160.0,0.00042897,30]
[361651017,1747666085481,-160.0,0.00042897,30]
[361651018,1747666085506,-160.0,0.00042897,30]
[361651019,1747666085532,-160.0,0.00042897,30]
[361651020,1747666085557,-160.0,0.00042897,30]